bitfinex-derivatives/quotes_SOLF0:USTF0_20250507
["timestamp","ask_amount","ask_price","bid_price","bid_amount"]
[1746612423240,6.768,147.77,147.74,6.7687]
[1746612423444,28.86,147.8,147.72,28.86]
[1746612423738,35.226,147.83,147.72,28.86]
[1746612424334,7.20921204,147.81,147.72,28.86]
[1746612424841,6.7687,147.75,147.72,35.6296]
[1746612425140,28.86,147.79,147.72,28.86]
[1746612425331,13.28421204,147.78,147.72,28.86]
[1746612425529,13.28421204,147.78,147.68,28.86]
[1746612426036,6.7706,147.71,147.68,35.6317]
[1746612427138,36.06921204,147.75,147.68,28.86]
[1746612429542,6.7712,147.69,147.68,28.86]
[1746612429937,36.06921204,147.75,147.64,613.58]
[1746612430138,6.7729,147.66,147.64,613.58]
[1746612430438,28.86,147.71,147.64,28.86]
[1746612430633,6.7731,147.65,147.64,28.86]
[1746612431645,6.7731,147.65,147.62,28.86]
[1746612431847,6.7728,147.66,147.62,28.86]
[1746612432041,35.1659,147.71,147.62,28.86]
[1746612432644,6.773,147.66,147.62,28.86]
[1746612432840,35.1659,147.71,147.62,28.86]
[1746612433240,6.7733,147.65,147.62,28.86]
[1746612433440,4.32106579,147.64,147.62,28.86]
[1746612433945,4.32106579,147.63,147.62,28.86]
[1746612434245,4.32106579,147.63,147.62,35.6344]
[1746612434947,6.7726,147.67,147.63,6.7738]
[1746612435142,35.1659,147.71,147.63,6.7738]
[1746612435946,6.7723,147.67,147.63,6.7738]
[1746612436243,35.1659,147.71,147.62,28.86]
[1746612436545,6.7728,147.66,147.62,28.86]
[1746612436746,35.1659,147.71,147.62,28.86]
[1746612437145,6.773,147.66,147.62,35.6342]
[1746612437347,35.1659,147.71,147.62,28.86]
[1746612437844,6.7734,147.65,147.62,28.86]
[1746612438747,6.7737,147.64,147.62,28.86]
[1746612440549,6.774,147.63,147.62,28.86]
[1746612441146,4.31644827,147.63,147.62,28.86]
[1746612441746,11.09044827,147.63,147.62,28.86]
[1746612442246,6.774,147.63,147.62,28.86]
[1746612442446,6.7734,147.65,147.62,28.86]
[1746612442643,4.31563684,147.64,147.62,28.86]
[1746612442947,4.31563684,147.64,147.62,35.6342]
[1746612443142,35.1659,147.71,147.62,35.6342]
[1746612443347,35.1659,147.71,147.62,28.86]
[1746612443548,6.7733,147.65,147.62,35.6343]
[1746612444350,6.7736,147.64,147.62,35.6343]
[1746612444652,6.7736,147.64,147.62,28.86]
[1746612445154,35.1659,147.71,147.62,28.86]
[1746612445951,6.7738,147.64,147.62,28.86]
[1746612450359,6.7733,147.65,147.62,35.6344]
[1746612450664,35.1659,147.71,147.62,35.6344]
[1746612450879,35.1659,147.71,147.62,28.86]
[1746612451663,35.1659,147.71,147.62,36.06921204]
[1746612451860,35.1659,147.71,147.63,1.9992]
[1746612452060,28.88,147.74,147.65,7.20921204]
[1746612452259,28.88,147.74,147.66,28.88]
[1746612453969,6.7706,147.71,147.67,6.7719]
[1746612455669,6.7706,147.71,147.68,6.7716]
[1746612456670,6.7708,147.7,147.68,6.7716]
[1746612459170,6.7708,147.7,147.67,6.7719]
[1746612467878,6.7708,147.7,147.68,6.7717]
[1746612469979,6.7706,147.71,147.68,6.7717]
[1746612471582,6.7712,147.69,147.67,6.772]
[1746612471875,1.9822,147.75,147.67,6.772]
[1746612472075,1.9822,147.75,147.69,6.7708]
[1746612472076,6.7701,147.72,147.69,6.7708]
[1746612472276,1.9822,147.75,147.7,29.16]
[1746612472475,4.1527,147.76,147.7,29.16]
[1746612472676,6.7687,147.75,147.72,6.7698]
[1746612473676,6.7682,147.76,147.73,6.7693]
[1746612473876,42.73941204,147.8,147.73,6.7693]
[1746612474180,42.73941204,147.8,147.7,29.16]
[1746612474582,6.7687,147.75,147.72,6.7697]
[1746612475285,6.769,147.74,147.71,6.7701]
[1746612475474,42.73941204,147.8,147.7,29.16]
[1746612475878,6.7696,147.73,147.7,35.9306]
[1746612478184,6.7701,147.72,147.7,29.16]
[1746612480587,6.7703,147.71,147.7,29.16]
[1746612481687,13.5334,147.79,147.7,35.9307]
[1746612481989,42.73941204,147.8,147.7,29.16]
[1746612482188,35.5302,147.8,147.7,29.16]
[1746612482589,6.7676,147.77,147.73,6.7691]
[1746612482783,35.5302,147.8,147.73,6.7691]
[1746612483184,6.7685,147.76,147.73,6.7691]
[1746612484291,6.7685,147.75,147.73,6.7691]
[1746612484487,6.7685,147.75,147.72,6.7696]
[1746612484786,35.5302,147.8,147.7,29.16]
[1746612485085,49.0628,147.8,147.7,29.16]
[1746612485387,6.7693,147.74,147.7,29.16]
[1746612485784,49.0628,147.8,147.7,35.9304]
[1746612486289,6.7694,147.73,147.7,35.9304]
[1746612486689,56.27201204,147.8,147.71,6.7702]
[1746612486991,6.7692,147.74,147.71,6.7702]
[1746612490491,56.27201204,147.8,147.7,29.16]
[1746612490693,35.5302,147.8,147.7,29.16]
[1746612490894,35.5302,147.8,147.71,7.20921204]
[1746612491185,6.3702,147.8,147.75,6.7681]
[1746612491381,6.3702,147.8,147.75,29.08]
[1746612491692,6.7669,147.79,147.75,35.8482]
[1746612491889,6.3702,147.8,147.75,35.8482]
[1746612492793,6.7674,147.78,147.75,35.8482]
[1746612493093,7.22332514,147.76,147.66,7.98512691]
[1746612493286,4.2011,147.75,147.66,7.98512691]
[1746612493789,4.2011,147.75,147.66,14.75762691]
[1746612493993,6.771,147.7,147.66,7.98512691]
[1746612494592,6.771,147.7,147.66,14.75762691]
[1746612496095,6.7713,147.69,147.66,14.75762691]
[1746612496496,6.7713,147.69,147.66,6.7725]
[1746612498095,6.7709,147.7,147.65,36.30332514]
[1746612498790,6.7709,147.7,147.67,6.7717]
[1746612499196,6.7709,147.7,147.65,36.30332514]
[1746612499396,6.7709,147.7,147.67,6.7719]
[1746612500498,6.7713,147.69,147.67,6.7719]
[1746612502195,6.771,147.7,147.67,6.7719]
[1746612505496,6.7703,147.72,147.65,36.30332514]
[1746612506001,6.7703,147.72,147.69,6.771]
[1746612506201,6.7696,147.73,147.7,29.1]
[1746612506401,6.7696,147.73,147.71,29.1]
[1746612506801,29.08,147.77,147.71,29.1]
[1746612507202,3.9619,147.79,147.71,29.1]
[1746612507603,3.9619,147.79,147.72,6.7696]
[1746612508199,3.9619,147.79,147.71,35.8702]
[1746612508906,6.7693,147.74,147.71,35.8702]
[1746612511807,3.9619,147.79,147.71,29.1]
[1746612512310,6.7682,147.76,147.73,6.7692]
[1746612513910,6.7685,147.75,147.72,6.7696]
[1746612518015,3.9619,147.79,147.71,29.1]
[1746612519412,29.1,147.8,147.71,36.32332514]
[1746612519814,2.1269,147.82,147.72,2.1605]
[1746612520017,6.7672,147.78,147.74,6.7687]
[1746612520217,6.7672,147.78,147.75,28.96]
[1746612520618,6.7672,147.78,147.75,35.7282]
[1746612521022,6.7676,147.77,147.75,28.96]
[1746612521619,2.1269,147.82,147.75,28.96]
[1746612521821,6.7672,147.78,147.75,35.7281]
[1746612522120,2.1269,147.82,147.75,28.96]
[1746612523724,6.7678,147.77,147.75,28.96]
[1746612524428,6.768,147.76,147.75,28.96]
[1746612529232,2.1269,147.82,147.75,28.96]
[1746612529630,2.1269,147.82,147.75,35.7282]
[1746612530031,6.7676,147.77,147.75,35.7282]
[1746612531731,2.1269,147.82,147.75,35.7282]
[1746612532230,6.7675,147.78,147.75,35.7282]
[1746612532432,2.1269,147.82,147.76,6.7679]
[1746612532637,2.1269,147.82,147.75,28.96]
[1746612532931,6.7664,147.8,147.77,6.7676]
[1746612534333,6.7667,147.79,147.77,6.7676]
[1746612535334,6.7667,147.79,147.76,6.7678]
[1746612535735,6.7672,147.78,147.75,35.7282]
[1746612535930,2.1269,147.82,147.75,28.96]
[1746612536229,6.767,147.79,147.76,6.768]
[1746612537834,6.7672,147.78,147.75,35.7282]
[1746612538229,6.7672,147.78,147.75,28.96]
[1746612538931,6.7669,147.79,147.76,6.7678]
[1746612539236,33.027,147.83,147.75,28.96]
[1746612539633,4.067,147.83,147.75,28.96]
[1746612539931,6.7667,147.79,147.75,28.96]
[1746612540135,4.067,147.83,147.75,28.96]
[1746612540336,6.0775,147.83,147.75,28.96]
[1746612540530,6.7673,147.78,147.75,35.7282]
[1746612541136,6.7678,147.77,147.75,28.96]
[1746612541534,6.0775,147.83,147.75,28.96]
[1746612541736,6.7674,147.78,147.75,35.7283]
[1746612542537,6.7669,147.79,147.76,6.768]
[1746612542834,6.7669,147.79,147.75,28.96]
[1746612543137,6.7669,147.79,147.76,6.7677]
[1746612543332,6.7672,147.78,147.75,28.96]
[1746612543636,6.7672,147.78,147.75,35.7281]
[1746612544336,6.0775,147.83,147.75,28.96]
[1746612544935,6.7678,147.77,147.75,28.96]
[1746612546438,6.7678,147.77,147.75,35.7284]
[1746612546832,6.7673,147.78,147.75,35.7284]
[1746612548639,6.7676,147.77,147.75,35.7284]
[1746612548835,6.7676,147.77,147.75,28.96]
[1746612550438,6.7676,147.77,147.75,35.7284]
[1746612557446,6.7676,147.77,147.75,28.96]
[1746612558340,6.768,147.76,147.75,28.96]
[1746612560648,42.3708,147.82,147.75,35.7284]
[1746612560849,28.84,147.82,147.75,28.96]
[1746612561049,6.0775,147.83,147.75,36.18332514]
[1746612561348,6.765,147.83,147.75,36.18332514]
[1746612561549,6.765,147.83,147.76,2.1307]
[1746612562044,6.7653,147.82,147.79,6.7663]
[1746612562239,6.7653,147.82,147.8,28.84]
[1746612565540,6.765,147.83,147.8,35.6062]
[1746612565746,36.06332514,147.89,147.8,28.84]
[1746612566246,6.7646,147.84,147.8,28.84]
[1746612566548,36.06332514,147.89,147.8,28.84]
[1746612567451,28.84,147.89,147.8,28.84]
[1746612568050,6.7646,147.84,147.81,6.7657]
[1746612569552,6.7642,147.85,147.82,6.7652]
[1746612569945,28.84,147.89,147.8,28.84]
[1746612570347,6.7644,147.84,147.81,6.7655]
[1746612572552,6.7648,147.83,147.81,6.7655]
[1746612572850,28.84,147.89,147.81,6.7655]
[1746612573050,28.84,147.89,147.82,6.7652]
[1746612573256,6.7648,147.84,147.8,28.84]
[1746612573553,28.84,147.89,147.8,28.84]
[1746612573751,6.7651,147.83,147.8,28.84]
[1746612574854,28.84,147.89,147.8,28.84]
[1746612576255,6.7657,147.82,147.8,28.84]
[1746612578061,6.7657,147.81,147.8,28.84]
[1746612578556,13.5269,147.86,147.73,1.9701]
[1746612578753,6.7673,147.78,147.75,6.7682]
[1746612578952,7.22332514,147.84,147.74,28.82]
[1746612579258,7.22332514,147.81,147.74,28.82]
[1746612579452,36.08332514,147.81,147.74,28.82]
[1746612579659,6.7685,147.75,147.74,28.82]
[1746612585365,6.77,147.72,147.7,584.76]
[1746612585556,6.77,147.72,147.71,28.88]
[1746612586660,11.09277474,147.72,147.71,28.88]
[1746612587063,4.32277474,147.72,147.71,28.88]
[1746612590264,11.09267474,147.72,147.71,28.88]
[1746612591160,6.7706,147.71,147.68,35.6515]
[1746612591359,4.32277474,147.7,147.69,6.7712]
[1746612592263,6.7699,147.72,147.69,6.7712]
[1746612592563,4.31897079,147.71,147.69,6.7712]
[1746612592958,6.7699,147.72,147.69,6.7712]
[1746612594064,4.32307831,147.71,147.69,6.7712]
[1746612594272,4.32307831,147.71,147.7,6.7708]
[1746612595667,6.7691,147.74,147.71,6.77]
[1746612595863,6.7691,147.74,147.72,28.88]
[1746612596069,11.09024783,147.73,147.72,28.88]
[1746612597268,11.08620342,147.73,147.72,28.88]
[1746612597467,6.7712,147.7,147.69,28.88]
[1746612598671,4.32416633,147.7,147.69,28.88]
[1746612599265,6.7708,147.7,147.69,28.88]
[1746612600672,11.09081455,147.7,147.69,28.88]
[1746612601474,4.32001455,147.7,147.69,28.88]
[1746612601677,6.7705,147.71,147.69,28.88]
[1746612603078,6.7708,147.7,147.69,28.88]
[1746612605576,6.7705,147.71,147.69,28.88]
[1746612614687,6.7701,147.72,147.69,28.88]
[1746612614880,6.3596,147.77,147.69,28.88]
[1746612615279,6.7692,147.74,147.71,6.7699]
[1746612616292,4.32069083,147.73,147.71,6.7699]
[1746612616784,4.32069083,147.72,147.71,6.7699]
[1746612617079,4.32069083,147.72,147.7,6.7707]
[1746612617480,4.32069083,147.72,147.69,28.88]
[1746612617686,4.32069083,147.71,147.69,35.6509]
[1746612618188,4.32069083,147.7,147.69,35.6509]
[1746612618781,6.7705,147.71,147.69,35.6509]
[1746612618989,6.7708,147.7,147.69,28.88]
[1746612619786,11.09625917,147.7,147.69,28.88]
[1746612625793,4.32545917,147.7,147.69,35.6512]
[1746612625987,4.32545917,147.7,147.69,28.88]
[1746612626393,6.7708,147.7,147.69,28.88]
[1746612629696,6.7705,147.71,147.69,28.88]
[1746612630496,4.55845223,147.7,147.69,28.88]
[1746612631099,4.55845223,147.7,147.69,35.6512]
[1746612641807,4.55845223,147.7,147.69,40.27060694]
[1746612642408,6.7686,147.75,147.73,6.7693]
[1746612642605,6.7686,147.75,147.73,35.6293]
[1746612649814,6.7686,147.75,147.73,28.86]
[1746612653014,6.7686,147.75,147.73,35.6293]
[1746612653316,36.07669264,147.82,147.73,28.86]
[1746612653512,28.86,147.82,147.73,28.86]
[1746612654112,6.7674,147.78,147.75,6.7682]
[1746612654814,11.25835256,147.77,147.75,6.7682]
[1746612655116,4.49075256,147.76,147.75,6.7682]
[1746612655307,4.49075256,147.76,147.74,6.7687]
[1746612655811,4.49075256,147.75,147.74,6.7687]
[1746612657313,4.48977669,147.75,147.74,6.7687]
[1746612657513,11.25827669,147.75,147.73,35.6292]
[1746612657815,4.48977669,147.74,147.73,35.6292]
[1746612660414,11.25867669,147.74,147.73,28.86]
[1746612667618,4.48977669,147.74,147.73,28.86]
[1746612668419,11.25867669,147.74,147.73,28.86]
[1746612677523,11.25867669,147.74,147.73,25.5816]
[1746612677827,4.48977669,147.74,147.7,28.7]
[1746612678325,4.48977669,147.73,147.7,28.7]
[1746612678524,6.7703,147.71,147.7,28.7]
[1746612678822,11.26007669,147.71,147.7,28.7]
[1746612679421,11.25960034,147.71,147.7,28.7]
[1746612682423,6.7719,147.68,147.66,589.57906762]
[1746612682622,4.48930034,147.71,147.67,28.7]
[1746612683020,6.7717,147.68,147.67,28.7]
[1746612683727,11.26100034,147.68,147.67,28.7]
[1746612683928,6.7729,147.66,147.64,28.7]
[1746612684228,6.7729,147.66,147.64,33.31906762]
[1746612684529,4.48930034,147.65,147.64,33.31906762]
[1746612684929,4.48930034,147.65,147.64,40.09256762]
[1746612685829,4.48930034,147.65,147.64,35.4735]
[1746612686826,4.48930034,147.65,147.64,28.7]
[1746612688029,4.48930034,147.65,147.64,35.4735]
[1746612690431,11.26240034,147.65,147.64,28.7]
[1746612690831,4.48930034,147.65,147.64,28.7]
[1746612691032,4.48930034,147.65,147.64,35.4735]
[1746612691230,2.1757,147.71,147.64,35.92448834]
[1746612691631,6.7716,147.69,147.66,6.7722]
[1746612692133,6.771,147.7,147.64,35.92448834]
[1746612692528,34.9604,147.75,147.64,35.92448834]
[1746612692729,34.9604,147.75,147.65,1.9901]
[1746612692923,6.7699,147.72,147.69,6.771]
[1746612693129,6.7699,147.72,147.7,28.7]
[1746612694130,6.7703,147.71,147.7,28.7]
[1746612696135,6.7714,147.69,147.67,28.7]
[1746612696733,6.7717,147.68,147.67,28.7]
[1746612698632,6.773,147.66,147.61,7.22448834]
[1746612698835,13.5391,147.73,147.63,28.7]
[1746612699938,6.7724,147.67,147.63,28.7]
[1746612700536,20.76358834,147.73,147.63,28.7]
[1746612701037,6.7719,147.68,147.65,6.7731]
[1746612701241,20.76358834,147.73,147.63,28.7]
[1746612701836,6.7728,147.66,147.63,35.4737]
[1746612703341,4.42291885,147.65,147.63,35.4737]
[1746612703843,4.42291885,147.64,147.63,35.4737]
[1746612725761,6.771,147.7,147.68,6.7717]
[1746612726669,6.7712,147.69,147.67,35.4719]
[1746612727870,6.7712,147.69,147.67,28.7]
[1746612728571,6.7712,147.69,147.67,35.4721]
[1746612729670,6.7712,147.69,147.67,28.7]
[1746612730672,6.7717,147.68,147.67,28.7]
[1746612731968,4.62314101,147.71,147.62,6.7741]
[1746612732273,4.62314101,147.67,147.63,28.58]
[1746612732773,6.7735,147.64,147.63,28.58]
[1746612737971,11.14996419,147.64,147.63,28.58]
[1746612752985,4.37646419,147.64,147.63,28.58]
[1746612755588,4.37646419,147.64,147.63,35.354]
[1746612767991,33.26466277,147.73,147.67,6.7717]
[1746612768193,6.771,147.7,147.68,28.64]
[1746612768395,6.3201,147.74,147.68,28.64]
[1746612768694,10.94476277,147.74,147.68,28.64]
[1746612768898,10.94476277,147.74,147.68,35.4116]
[1746612769090,10.94476277,147.74,147.68,28.64]
[1746612769292,6.771,147.7,147.68,28.64]
[1746612775697,6.7712,147.69,147.68,28.64]
[1746612776301,6.771,147.7,147.68,28.64]
[1746612776495,10.94476277,147.74,147.68,28.64]
[1746612777204,6.7711,147.7,147.68,28.64]
[1746612777501,10.94476277,147.74,147.68,28.64]
[1746612779303,6.7706,147.71,147.68,35.4115]
[1746612780404,6.7708,147.7,147.68,35.4115]
[1746612785700,10.94476277,147.74,147.69,6.771]
[1746612785905,10.94476277,147.74,147.69,4.62466277]
[1746612786609,6.7696,147.73,147.69,4.62466277]
[1746612786812,28.64,147.76,147.69,4.62466277]
[1746612787113,6.7695,147.73,147.71,4.62466277]
[1746612787412,6.7695,147.73,147.72,28.62]
[1746612792221,4.62466277,147.77,147.72,28.62]
[1746612792711,4.62466277,147.77,147.72,35.3896]
[1746612792917,4.62466277,147.77,147.72,28.62]
[1746612793417,4.62466277,147.77,147.72,35.3898]
[1746612793917,6.769,147.74,147.72,35.3898]
[1746612794212,4.324,147.78,147.73,4.62466277]
[1746612794415,4.62466277,147.79,147.73,4.62466277]
[1746612794819,6.7683,147.76,147.73,11.39376277]
[1746612795018,6.7683,147.76,147.73,4.62466277]
[1746612795221,2.0625,147.81,147.73,4.62466277]
[1746612795417,6.7683,147.76,147.73,11.39386277]
[1746612796017,6.7678,147.77,147.74,6.7689]
[1746612796518,4.62466277,147.8,147.74,6.7689]
[1746612796919,6.7681,147.76,147.74,6.7689]
[1746612797320,6.7681,147.76,147.73,11.39386277]
[1746612797922,6.7686,147.75,147.73,11.39386277]
[1746612803825,6.7686,147.75,147.73,4.62466277]
[1746612805729,6.7689,147.74,147.73,4.62466277]
[1746612806223,4.62466277,147.8,147.73,11.39396277]
[1746612807530,2.0625,147.81,147.72,613.46]
[1746612807729,2.0625,147.81,147.77,4.62466277]
[1746612807935,4.1599,147.82,147.78,28.52]
[1746612808227,6.7665,147.8,147.78,28.52]
[1746612811029,6.7666,147.79,147.78,28.52]
[1746612814527,6.7678,147.77,147.75,28.52]
[1746612815535,6.7673,147.78,147.75,35.2885]
[1746612815730,6.75206277,147.81,147.76,4.62466277]
[1746612815931,4.1599,147.82,147.76,4.62466277]
[1746612816231,6.7664,147.8,147.77,6.7673]
[1746612816430,4.1599,147.82,147.76,4.62466277]
[1746612816832,6.7674,147.78,147.75,28.52]
[1746612817436,6.7676,147.77,147.75,28.52]
[1746612819032,6.7673,147.78,147.75,28.52]
[1746612819234,6.7673,147.78,147.75,35.2882]
[1746612819629,6.66956277,147.81,147.75,28.52]
[1746612819828,4.1599,147.82,147.75,28.52]
[1746612820135,6.7667,147.79,147.75,28.52]
[1746612820337,6.7667,147.79,147.76,6.7678]
[1746612820633,4.1599,147.82,147.76,6.7678]
[1746612822034,6.7672,147.78,147.76,6.7678]
[1746612823338,6.7668,147.79,147.76,6.7678]
[1746612825337,6.7672,147.78,147.76,6.7678]
[1746612826139,6.7672,147.78,147.75,35.2883]
[1746612828142,6.7676,147.77,147.75,35.2883]
[1746612828940,6.7674,147.78,147.75,35.2883]
[1746612830043,6.768,147.76,147.75,28.52]
[1746612831144,11.23338954,147.76,147.75,28.52]
[1746612833543,4.46538954,147.76,147.75,28.52]
[1746612835940,11.23338954,147.76,147.75,28.52]
[1746612840250,4.46538954,147.76,147.72,28.46]
[1746612840549,6.7694,147.73,147.72,28.46]
[1746612840749,11.23478954,147.73,147.72,28.46]
[1746612844752,4.46538954,147.73,147.69,613.2]
[1746612844949,4.46538954,147.73,147.69,28.46]
[1746612845343,6.7708,147.7,147.69,28.46]
[1746612845852,11.23618954,147.7,147.69,28.46]
[1746612848652,4.46538954,147.7,147.66,28.46]
[1746612849549,4.46538954,147.69,147.66,28.46]
[1746612849750,4.46538954,147.68,147.66,28.46]
[1746612850154,4.46538954,147.67,147.66,28.46]
[1746612851555,11.23748954,147.67,147.66,28.46]
[1746612855058,4.46538954,147.67,147.66,28.46]
[1746612855669,4.46538954,147.67,147.66,35.2326]
[1746612867665,4.46538954,147.67,147.66,39.85476479]
[1746612868172,4.45727115,147.67,147.66,39.85476479]
[1746612868570,6.7715,147.69,147.66,39.85476479]
[1746612869172,6.7717,147.68,147.66,39.85476479]
[1746612869474,4.62216479,147.72,147.66,33.08216479]
[1746612869772,6.772,147.68,147.66,28.46]
[1746612870774,4.45735678,147.67,147.66,35.2326]
[1746612871177,4.45735678,147.67,147.66,28.46]
[1746612878885,11.22945678,147.67,147.66,28.46]
[1746612897891,6.773,147.66,147.64,33.10216479]
[1746612898189,4.45735678,147.65,147.64,33.10216479]
[1746612898386,4.45735678,147.65,147.64,28.48]
[1746612898591,11.23045678,147.65,147.64,28.48]
[1746612907698,4.45735678,147.65,147.64,28.48]
[1746612908101,4.45735678,147.65,147.64,33.10216479]
[1746612908593,4.45735678,147.65,147.64,39.87566479]
[1746612910198,4.45735678,147.65,147.64,33.10216479]
[1746612911798,4.45735678,147.65,147.64,39.87566479]
[1746612913499,4.45735678,147.65,147.64,33.10216479]
[1746612915397,4.45735678,147.65,147.64,39.87566479]
[1746612916496,4.45735678,147.65,147.64,35.2535]
[1746612916800,4.48920572,147.65,147.64,39.87566479]
[1746612934109,4.48920572,147.65,147.64,35.2535]
[1746612935311,4.4903782,147.65,147.64,35.2535]
[1746612937409,11.2634782,147.65,147.64,28.48]
[1746612939316,4.4903782,147.65,147.61,28.54]
[1746612939514,4.4903782,147.64,147.61,28.54]
[1746612940114,11.2646782,147.63,147.61,28.54]
[1746612940416,4.4903782,147.63,147.61,28.54]
[1746612940618,4.4903782,147.62,147.61,28.54]
[1746612941717,4.4903782,147.62,147.61,35.3149]
[1746612944723,4.4903782,147.62,147.61,28.54]
[1746612946521,11.2647782,147.62,147.61,28.54]
[1746612949021,4.4903782,147.62,147.61,28.54]
[1746612949722,4.4903782,147.62,147.61,35.3149]
[1746612954013,4.4903782,147.62,147.61,39.93919314]
[1746612973732,4.4903782,147.62,147.61,35.3149]
[1746612973934,4.4903782,147.62,147.61,39.93919314]
[1746612978337,11.2647782,147.62,147.61,39.93919314]
[1746612978834,4.4903782,147.62,147.61,39.93919314]
[1746612981235,11.2647782,147.62,147.61,39.93919314]
[1746612981935,11.2647782,147.62,147.61,33.16429314]
[1746612997245,11.2647782,147.62,147.61,28.54]
[1746613000952,6.7756,147.6,147.58,33.10429314]
[1746613001350,4.4903782,147.59,147.58,33.10429314]
[1746613002051,4.4903782,147.59,147.58,39.88059314]
[1746613003154,11.2661782,147.59,147.58,28.48]
[1746613003951,4.4903782,147.59,147.58,28.48]
[1746613005156,11.2661782,147.59,147.58,28.48]
[1746613012059,4.4903782,147.59,147.58,39.88059314]
[1746613012760,6.2705,147.65,147.61,6.7747]
[1746613012960,6.2705,147.65,147.61,11.39899314]
[1746613013855,6.7742,147.63,147.61,11.39899314]
[1746613014661,6.7744,147.62,147.59,6.7755]
[1746613014960,4.62429314,147.64,147.58,28.48]
[1746613015161,4.62429314,147.64,147.58,35.2562]
[1746613015564,4.62429314,147.64,147.59,4.62429314]
[1746613015761,6.7747,147.62,147.59,11.39979314]
[1746613016862,6.775,147.61,147.59,11.39979314]
[1746613017863,6.775,147.61,147.59,4.62429314]
[1746613018962,6.775,147.61,147.59,11.39999314]
[1746613019465,6.7754,147.6,147.59,4.62429314]
[1746613019762,6.2705,147.65,147.59,4.62429314]
[1746613019963,6.7752,147.61,147.58,35.2561]
[1746613020162,6.7752,147.61,147.59,4.62429314]
[1746613020669,6.7752,147.61,147.59,11.40009314]
[1746613021266,6.7752,147.61,147.59,6.7758]
[1746613022064,6.7752,147.61,147.58,39.88039314]
[1746613023366,6.7752,147.61,147.59,6.7758]
[1746613023560,6.7752,147.61,147.58,33.10429314]
[1746613024265,6.7752,147.61,147.59,6.7758]
[1746613025162,4.41279335,147.6,147.59,6.7758]
[1746613026367,4.41279335,147.6,147.58,28.48]
[1746613026868,4.41279335,147.59,147.58,35.2563]
[1746613027368,4.41279335,147.59,147.58,28.48]
[1746613027565,11.18859335,147.59,147.58,28.48]
[1746613037176,4.41279335,147.59,147.58,28.48]
[1746613037570,4.41279335,147.59,147.58,35.2563]
[1746613038277,46.64799314,147.68,147.58,28.48]
[1746613038476,46.64799314,147.68,147.61,4.62429314]
[1746613038678,46.64799314,147.68,147.62,28.48]
[1746613039377,6.7739,147.64,147.62,28.48]
[1746613039577,33.10429314,147.68,147.62,35.2543]
[1746613039774,6.7733,147.65,147.62,35.2543]
[1746613040569,6.7735,147.64,147.62,35.2543]
[1746613040773,10.97149314,147.7,147.63,4.62429314]
[1746613041174,6.7731,147.65,147.63,4.62429314]
[1746613041979,6.7731,147.65,147.63,11.39799314]
[1746613043382,6.7731,147.65,147.63,4.62429314]
[1746613050584,4.34699203,147.64,147.63,4.62429314]
[1746613053588,11.12049203,147.64,147.63,4.62429314]
[1746613060488,4.34699203,147.64,147.63,4.62429314]
[1746613061578,11.12049203,147.64,147.63,4.62429314]
[1746613062685,4.34699203,147.64,147.63,11.39829314]
[1746613062891,4.34699203,147.64,147.63,4.62429314]
[1746613063293,11.12049203,147.64,147.63,4.62429314]
[1746613063691,11.12184044,147.64,147.63,4.62429314]
[1746613064792,11.12184044,147.64,147.62,35.2541]
[1746613064995,11.12184044,147.64,147.63,4.62429314]